Cogmind - Beta 9.6 @@@ ROGUE MODE // 2020.07.11 @ 14:09:52 Player: GGOBC-006 Result: Destroyed by G-34 Mercenary with Small Laser Performance ------------- Evolutions (1) 500 Regions Visited (2) 400 Robots Destroyed (54) 270 Value Destroyed (969) 969 Prototype IDs (2) 40 Alien Tech Used (0) 0 Bonus (-62) -62 TOTAL SCORE: 2117 Bonus ------- Friendly Fire -62 Cogmind --------- Core Integrity 0/400 Matter 196/300 Energy 100/100 System Corruption 0% Temperature Cool (6) Movement Treading (160) Location -9/Materials Parts ------- > --- POWER (1) -------- (None) > --- PROPULSION (4) --- Improved Treads > --- UTILITY (2) ------ Targeting Computer > --- WEAPON (2) ------- (None) > --- INVENTORY (4) ---- Shield Generator EM Pulse Cannon EM Pulse Cannon Light Assault Rifle Peak State ------------ > --- POWER ------------ Light Ion Engine > --- PROPULSION ------- Wheel Wheel > --- UTILITY ---------- Improved Terrain Scanner Tractor Beam > --- WEAPON ----------- Small Laser Assault Rifle > --- INVENTORY -------- Light Ion Engine Compact Wheel Light Assault Rifle [Rating: 8] Favorites ----------- Power Light Ion Engine Engine Light Ion Engine Propulsion Flight Unit Treads Improved Treads Wheel Wheel Flight Unit Flight Unit Utility Heat Sink Device Heat Sink Processor Targeting Computer Weapon Light Assault Rifle Energy Gun Small Laser Energy Cannon Beam Cannon Ballistic Gun Light Assault Rifle Launcher Grenade Launcher Build | -11 -10 -9 ------- Run | Scr Mat Mat Slots Evolved 2 | . . 2 Power . | . . . Propulsion 2 | . . 2 Utility . | . . . Weapon . | . . . Parts Attached 49 | 11 27 11 Power 9 | 1 5 3 Engine 9 | 1 5 3 Core . | . . . Reactor . | . . . Propulsion 13 | 3 7 3 Treads 1 | . . 1 Leg . | . . . Wheel 3 | 3 . . Hover . | . . . Flight 9 | . 7 2 Utility 13 | 5 7 1 Device 11 | 4 6 1 Storage . | . . . Processor 2 | 1 1 . Hackware . | . . . Protection . | . . . Artifact . | . . . Weapon 14 | 2 8 4 Energy Gun 2 | 1 1 . Energy Cannon 2 | . 1 1 Ballistic Gun 8 | 1 6 1 Ballistic Cannon . | . . . Launcher 2 | . . 2 Special Weapon . | . . . Impact Weapon . | . . . Slashing Weapon . | . . . Piercing Weapon . | . . . Special Melee Weapon . | . . . Unidentified Prototypes . | . . . Parts Lost 13 | . 1 12 Power 4 | . . 4 Propulsion 4 | . . 4 Utility 2 | . . 2 Weapon 3 | . 1 2 Highest Loss Streak 8 | . 1 8 Average Slot Usage (%) 86 | . 91 78 Engine 12 | . 14 8 Wheel 2 | . 4 . Flight 25 | . 23 28 Device 13 | . 15 10 Processor 9 | . 8 11 Energy Cannon 6 | . 5 7 Ballistic Gun 15 | . 17 11 Naked Turns . | . . . Heaviest Build 10 | 8 10 10 Greatest Support 26 | 26 20 23 Greatest Overweight (x) 2 | . 1 2 Average Overweight (x) . | . . . Largest Inventory Capacity 4 | 4 4 4 Average Capacity 4 | 4 4 4 Most Carried 4 | 4 4 4 Average Carried 3 | 2 3 3 Final Capacity 4 | 4 4 4 Final Carried 4 | 4 4 4 Class Distribution -------------------- 60% | Scavenger-Mutant 39% | Mutant Dominant Class ---------------- Scavenger-Mutant | -10/Materials Scavenger-Mutant | -9/Materials Resources | -11 -10 -9 ----------- Run | Scr Mat Mat Matter Collected 990 | 351 557 82 Remotely 96 | 86 10 . Salvage Created 1746 | 219 1245 282 Parts 111 | 18 73 20 Haulers Intercepted 3 | . 2 1 Recyclers Shooed 8 | 2 6 . Parts Field Recycled . | . . . Retrieved Matter . | . . . Parts Self-Destructed . | . . . Prevented . | . . . Kills | -11 -10 -9 ------- Run | Scr Mat Mat Combat Hostiles Destroyed 25 | . 15 10 Guns 14 | . 13 1 Cannons 3 | . 2 1 AOE 8 | . . 8 Classes Destroyed 12 | 3 7 2 Worker 5 | 2 2 1 Builder 2 | . 1 1 Tunneler 5 | 5 . . Hauler 3 | . 2 1 Recycler 7 | 1 6 . Mechanic 1 | . 1 . Operator 3 | . 3 . Watcher 3 | . 3 . Swarmer 8 | . 5 3 Grunt 15 | . 10 5 Duelist 1 | . . 1 Sentry 1 | . . 1 Best Kill Streak 6 | 2 5 6 Combat Bots Only 5 | . 5 5 Max Kills in Single Turn 2 | 2 1 2 Gunslinging . | . . . Exploded 2 | . . 2 Melee . | . . . Uniques/NPCs Destroyed . | . . . Combat | -11 -10 -9 -------- Run | Scr Mat Mat Damage Taken 1616 | . 619 997 Core 561 | . 154 407 Absorbed by Shields . | . . . Core Remaining (%) 69 | 100 38 . Volleys Fired 186 | 17 133 36 Largest 2 | 2 2 2 Hottest 80 | 60 80 80 Shots Fired 338 | 34 236 68 Gun 294 | 34 217 43 Cannon 37 | . 19 18 Launcher 7 | . . 7 Special . | . . . Kinetic 259 | 17 199 43 Thermal 72 | 17 37 18 Explosive 7 | . . 7 Electromagnetic . | . . . Robot Hit Streak 8 | 4 8 7 Robot Miss Streak 5 | 3 5 3 Penetration Max . | . . . Secondary Targets 1 | . . 1 Max Gunslinging Chain 1 | . . 1 Shots Hit Robots 185 | 19 128 38 Core Hits 95 | 9 59 27 Critical Hits 1 | . 1 . Critical Kills 1 | . 1 . Critical Parts Destroyed . | . . . Melee Attacks . | . . . Impact . | . . . Slashing . | . . . Piercing . | . . . Sneak Attacks . | . . . Combat Hostiles . | . . . Follow-up Attacks . | . . . Damage Inflicted 2417 | 221 1321 875 Guns 1522 | 221 1058 243 Cannons 475 | . 263 212 Explosions 420 | . . 420 Melee . | . . . Ramming . | . . . Kinetic 1323 | 111 969 243 Thermal 674 | 110 352 212 Explosive 420 | . . 420 Electromagnetic . | . . . Impact . | . . . Slashing . | . . . Piercing . | . . . Highest Corruption . | . . . Average Corruption . | . . . Corruption Purged . | . . . Overload Shots . | . . . Overflow Damage 13 | . . 13 Projectiles 8 | . . 8 Explosions 5 | . . 5 Melee . | . . . Knockbacks . | . . . Impact . | . . . Kinetic . | . . . Secondary . | . . . Self-Inflicted Damage 62 | . . 62 Shots 3 | . . 3 Rammed . | . . . Targets Rammed . | . . . Kicked . | . . . Crushed . | . . . Highest Temperature 48 | 20 48 40 Average Temperature 17 | 20 17 17 Received Heat Transfer 594 | . 201 393 Siege Activations . | . . . Robots Corrupted . | . . . Combat Hostiles . | . . . Parts Fried . | . . . Impact Corruptions . | . . . Robots Melted . | . . . Combat Hostiles . | . . . Parts Melted 2 | . 1 1 Heat Transferred 1449 | 250 755 444 Parts Sabotaged . | . . . Parts Stolen . | . . . Parts Stripped . | . . . Power Chain Reactions . | . . . Missiles Intercepted . | . . . Alert | -11 -10 -9 ------- Run | Scr Mat Mat Peak Influence 375 | 40 375 321 Average Influence 151 | 18 208 101 Maximum Alert Level 1 | . 1 1 Low Security (%) 61 | 100 43 80 Level 1 38 | . 56 19 Level 2 . | . . . Level 3 . | . . . Level 4 . | . . . Level 5 . | . . . High Security . | . . . Max Security . | . . . Squads Dispatched 7 | . 4 3 Investigation 3 | . 2 1 Extermination . | . . . Reinforcement 4 | . 2 2 Assault . | . . . Garrison . | . . . Intercept . | . . . Construction Impeded 1 | . . 1 Haulers Reinforced . | . . . Stealth | -11 -10 -9 --------- Run | Scr Mat Mat Distress Signals 6 | . 5 1 Communications Jammed . | . . . Distress Signals . | . . . Times Spotted 54 | . 30 24 Peak Tracking Total 7 | . 4 7 Tactical Retreats 1 | . . 1 Traps | -11 -10 -9 ------- Run | Scr Mat Mat Traps Triggered . | . . . Indirectly . | . . . Trap Hack Attempts . | . . . Triggered . | . . . Disarmed . | . . . Reprogrammed . | . . . Reused . | . . . Traps Extracted . | . . . Installed . | . . . Triggered . | . . . Machines | -11 -10 -9 ---------- Run | Scr Mat Mat Machines Disabled 7 | . 1 6 Max in Single Turn 3 | . 1 3 Machines Sabotaged . | . . . Garrisons Compromised . | . . . Overloaded Fab Kills . | . . . Fab Network Shutdowns . | . . . Hacking | -11 -10 -9 --------- Run | Scr Mat Mat Machines Accessed 9 | . 7 2 Terminals 7 | . 5 2 Fabricators . | . . . Repair Stations 1 | . 1 . Recycling Units 1 | . 1 . Scanalyzers . | . . . Garrison Access . | . . . Total Hacks 37 | . 29 8 Successful 21 | . 15 6 Failed 16 | . 14 2 Catastrophic 2 | . 2 . Database Lockouts . | . . . Manual 31 | . 24 7 Terminals 33 | . 25 8 Fabricators . | . . . Repair Stations 2 | . 2 . Recycling Units 2 | . 2 . Scanalyzers . | . . . Garrison Access . | . . . Terminal Hacks 4 | . 3 1 Prototype ID Bank 1 | . . 1 Unreport Threat 2 | . 2 . Recall Reinforcements 1 | . 1 . Fabricator Hacks . | . . . Repair Station Hacks 2 | . 2 . Scan Component 1 | . 1 . Repair 1 | . 1 . Recycling Unit Hacks 1 | . 1 . Report Inventory 1 | . 1 . Scanalyzer . | . . . Garrison Access Hacks . | . . . Unauthorized Hacks 14 | . 9 5 Terminals 13 | . 8 5 Track 4 | . 2 2 Assimilate 1 | . 1 . Botnet 6 | . 4 2 Operators 2 | . 1 1 Fabricators . | . . . Repair Stations . | . . . Recycling Units 1 | . 1 . Tunnel 1 | . 1 . Scanalyzers . | . . . Garrison Access . | . . . Data Cores Recovered . | . . . Used . | . . . Hacking Detections 7 | . 5 2 Full Trace Events 3 | . 2 1 Feedback Events . | . . . Feedback Blocked . | . . . Robot Schematics Acquired . | . . . Robots Built . | . . . Matter . | . . . Time . | . . . Total Robot Build Rating . | . . . Part Schematics Acquired . | . . . Parts Built . | . . . Matter . | . . . Time . | . . . Total Part Build Rating . | . . . Parts Repaired 1 | . 1 . Time 26 | . 26 . Parts Recycled . | . . . Recycled Matter . | . . . Retrieved Matter . | . . . Retrieved Components . | . . . Parts Scanalyzed . | . . . Part Schematics Acquired . | . . . Parts Damaged . | . . . Bothacking | -11 -10 -9 ------------ Run | Scr Mat Mat Used RIF Installer . | . . . Robots Hacked . | . . . Non-combat . | . . . Combat . | . . . Robot Hacks Applied . | . . . Relay Couplers Released . | . . . Robots Rewired . | . . . Allies Hacked . | . . . Hacks Repelled . | . . . Allies | -11 -10 -9 -------- Run | Scr Mat Mat Total Allies 1 | . 1 . Largest Group 1 | . 1 . Highest-Rated Group 10 | . 10 . Highest-Rated Ally 10 | . 10 . Total Orders . | . . . Ally Attacks . | . . . Total Damage . | . . . Kills . | . . . Allies Corrupted . | . . . Allies Melted . | . . . Intel | -11 -10 -9 ------- Run | Scr Mat Mat Robot Analysis Total . | . . . Derelict Logs Recovered . | . . . Drone Launches . | . . . Drone Recoveries . | . . . Exploration | -11 -10 -9 ------------- Run | Scr Mat Mat Turns Passed 1525 | 169 849 507 Spaces Moved 1345 | 123 836 386 Core 43 | 5 . 38 Treads 3 | . . 3 Legs . | . . . Wheels 171 | 118 53 . Hover . | . . . Flight 1128 | . 783 345 Fastest Speed 31 | 50 37 31 Average Speed 44 | 81 41 39 Slowest Speed 200 | 100 120 200 Overloaded Moves . | . . . Propulsion Burnouts . | . . . Robots Hopped 6 | . 5 1 Cave-ins Triggered . | . . . Exploration Rate (%) 39 | 4 81 33 Regions Visited 2 Branch Regions . Pre-discovered Areas 1 | . 1 . Known Exits Taken . | . . . Unknown Exits Taken 2 | 1 1 . Scrap Searched . | . . . Spaces Dug . | . . . Terrain Destroyed 66 | . . 66 Melee . | . . . Projectile . | . . . AOE 66 | . . 66 Actions | -11 -10 -9 --------- Run | Scr Mat Mat Total 1968 | 156 1137 675 Wait 353 | . 114 239 Move 1331 | 122 825 384 Hop 6 | . 5 1 Pick Up 10 | 3 4 3 Fast Attach 24 | 8 11 5 Attach 3 | . . 3 Detach . | . . . Swap 22 | 3 16 3 Drop 33 | 3 29 1 Fire 186 | 17 133 36 Melee . | . . . Ram . | . . . Kick . | . . . Crush . | . . . Escape Stasis . | . . . Rewire . | . . . Trap . | . . . Miscellaneous . | . . . Route ------- -11/Scrapyard -10/Materials (discovered 4 exits: *Mat x2 / [*Min x2]) -9/Materials (discovered 2 exits: [*Mat] / [*Min]) History --------- Turn | Location | Event 19 | -11/Scrapyard | Discovered new exit (range 15) 170 | -11/Scrapyard | Entered Materials 202 | -10/Materials | Discovered new exit (range 16) 303 | -10/Materials | Build established: Mutant 615 | -10/Materials | Build established: Scavenger-Mutant 636 | -10/Materials | Core integrity fell below 50% 669 | -10/Materials | Discovered new exit (range 15) 690 | -10/Materials | Discovered new exit (range 16) 896 | -10/Materials | Repaired Heat Sink 991 | -10/Materials | Discovered new exit (range 8) 1019 | -10/Materials | Entered another Materials area 1019 | -9/Materials | Evolved 2 slots: Propulsion x2 1392 | -9/Materials | Discovered new exit (range 16) 1414 | -9/Materials | Discovered new exit (range 12) 1433 | -9/Materials | Lost 3 parts (1p2n) 1486 | -9/Materials | Core integrity fell below 50% 1497 | -9/Materials | Core integrity fell below 20% 1526 | -9/Materials | Destroyed by G-34 Mercenary with Small Laser Last Messages --------------- Electrolysis Chamber disabled. Grenade Launcher destroyed. Acquired 18 matter. Acquired 6 matter. Acquired 11 matter. U-05 Engineer lays Concrete. Flight Unit destroyed. Acquired Ion Engine. Ion Engine destroyed. U-05 Engineer lays Concrete. K-01 Serf collects debris. U-05 Engineer lays Concrete. K-01 Serf collects debris. U-05 Engineer lays Concrete. U-05 Engineer builds a Door. U-05 Engineer lays Concrete. Acquired Maneuvering Thrusters. Acquired EM Pulse Cannon. Maneuvering Thrusters destroyed. Acquired Imp. Treads. Map ----- +----------------------------------------------------+ | ?????????????????????????# #"""# ## " " | | ?????????????????????????# #"Y"# ## """ # | | ?????????????????????????# #" "# ## "" # | | ?????????????????????????# # "" # | | ????##???????????????????# + " " | | #### #???????????????????# #%!""" " | | #???????????????????## #[ """ " | | """" #????????????###?????# " # """ # | | "T"" #????????????# o### T # " ####### | | #????????? " # #?????? | | #????????? # +?????? | | ! #????????? ########?????? | | #????????? ?## / ####" "## #????????????? | | #####???????? #?#######??###### #????????????? | | # ######??# #????? #?# #????????????? | | #??# #?#??""" """ #?# #????????????? | | """ #??# ##? """ """ #?# #######??????? | | "R" #??# ??? """ """ #?# # | | " " #??# #???? #?# #######??????? | | #### #?????? #?# #????????????? | | =+ " + #??????? ???# #????????????? | | # # #????###+######## #????????????? | | ## # Y ###### ###### ############?? | | ############ g g k | | % #???# g ! ####????? | | = #???# @ #???????? | | " """ #??## #####] %###############???????? | | " """ #??# #???## ## ######?????????????? | | " """ #??# !//#????# # ?????????????? | | #??#]]!!//#????# # #????????????? | | #??########????# + """ """ #????????????? | | ########??????????????# # """ """ #????????????? | | ??????????????????????# # """ """??????????????? | | ??????????????????????# # """ """??????????????? | | ??????????????????????# # ?? ???????????????? | | ??????????????????????# # ??? ???????????????? | | ??????????????????????# ###????????????????????? | | ??????????????????????# #??????????????????????? | | ??????????????????????# #??????????????????????? | | ???????o??????????????# < #??????????????????????? | | ??????????????????????# #??????????????????????? | | ???????????????????????###???????????????????????? | | ?????????????????????????????????????????????????? | | ?????????????????????????????????????????????????? | | ?????????????????????????????????????????????????? | | ?????????????????????????????????????????????????? | | ?????????????????????????????????????????????????? | | ?????????????????????????????????????????????????? | | ?????????????????????????????????????????????????? | | ?????????????????????????????????????????????????? | +----------------------------------------------------+ Best States ------------- Heat Dissipation 45 Energy Generation 10 Energy Capacity 250 Matter Stores 300 Matter Capacity 300 Sight Range 16 Terrain Scan Range 16 Terrain Scan Density 60 Evasion (%) 63 Targeting Accuracy 5 Item Schematics ----------------- None Robot Schematics ------------------ None Fabricated ------------ Nothing Alien Tech Used ----------------- None Achievements -------------- None Challenges ------------ None Game ------ Seed CombatBiocellShockpuncher Manual? 0 Play Time 00:21:34 Cumulative 31.4 hours Start 2020.07.11 @ 13:47:37 End 2020.07.11 @ 14:09:52 Sessions 1 Manual Loads 0 Difficulty Rogue Special Mode None Game No. 27 Rogue 27 Adventurer 0 Explorer 0 Win Type - Total 0 Types 0/0/0/0/0/0/0 Lore% 42 Gallery% 35 Achievement% 31 Wizard Run 0 Options --------- ASCII 0 Keyboard 0 Movement Numpad Keybinds 0 Fullscreen 2 Font 18/TerminusBold Map View 76x50 Tactical HUD 0 Map Filters NONE Filters NONE Steam 1 RUN: 1b56b5fc-321e-4089-87fc-a247f97914ff